Cogmind - Beta 16 @@@ ROGUE MODE // 2025.10.30 @ 12:42:24 Player: Rocko1345 Result: Destroyed by as-36826 with Assembled Heavy Rifle Performance ------------- Evolutions (1) 500 Regions Visited (3) 600 Robots Destroyed (33) 165 Value Destroyed (758) 758 Prototype IDs (1) 20 Alien Tech Used (0) 0 Bonus (0) 0 TOTAL SCORE: 2043 Bonus ------- None Cogmind --------- Core Integrity 0/400 Matter 257/300 Energy 100/100 System Corruption 8% Temperature Cool (0) Movement Core (50) Location -9/Mines Parts ------- > --- POWER (1) -------- (None) > --- PROPULSION (2) --- (None) > --- UTILITY (4) ------ (None) > --- WEAPON (2) ------- Shotgun > --- INVENTORY (5) ---- Light Treads Shotgun Shotgun Datajack Peak State ------------ > --- POWER ------------ Deuterium Engine > --- PROPULSION ------- Improved Aluminum Leg Improved Aluminum Leg > --- UTILITY ---------- Improved Heat Sink Medium Storage Unit Visual Processing Unit Improved Terrain Scanner > --- WEAPON ----------- Improved Medium Laser Heavy Assault Rifle > --- INVENTORY -------- Light Ion Engine Light Treads Light Treads Improved Aluminum Leg Improved Aluminum Leg Heavy Assault Rifle Autogun Shotgun Shotgun [Rating: 22] Favorites ----------- Power Ion Engine Engine Ion Engine Propulsion Improved Aluminum Leg Leg Improved Aluminum Leg Utility Improved Terrain Scanner Device Improved Terrain Scanner Storage Small Storage Unit Processor Visual Processing Unit Weapon Autogun Energy Gun Improved Medium Laser Ballistic Gun Autogun Build | -11 -10 -9 -9 ------- Run | Yrd Mat Mat Min Slots Evolved 2 | . . 2 . Power . | . . . . Propulsion . | . . . . Utility 2 | . . 2 . Weapon . | . . . . Parts Attached 25 | 7 4 11 3 Power 3 | 1 . 2 . Engine 3 | 1 . 2 . Core . | . . . . Reactor . | . . . . Propulsion 6 | 2 2 2 . Treads . | . . . . Leg 6 | 2 2 2 . Wheel . | . . . . Hover . | . . . . Flight . | . . . . Utility 7 | 2 . 3 2 Device 2 | 1 . 1 . Storage 3 | 1 . 1 1 Processor 2 | . . 1 1 Hackware . | . . . . Protection . | . . . . Artifact . | . . . . Weapon 9 | 2 2 4 1 Energy Gun 5 | 2 . 3 . Energy Cannon . | . . . . Ballistic Gun 4 | . 2 1 1 Ballistic Cannon . | . . . . Launcher . | . . . . Special Weapon . | . . . . Impact Weapon . | . . . . Slashing Weapon . | . . . . Piercing Weapon . | . . . . Special Melee Weapon . | . . . . Unidentified Prototypes 1 | . . 1 . Parts Lost 7 | . . 1 6 Power . | . . . . Propulsion 1 | . . . 1 Utility 3 | . . 1 2 Weapon 3 | . . . 3 Highest Loss Streak 5 | . . 1 5 To Critical Strikes 1 | . . . 1 Average Backups 6 | 1 5 7 7 Power . | . . . . Propulsion 2 | 1 3 3 1 Utility . | . . . . Weapon 3 | . 1 3 4 Tool/Special . | . . . . Unused Backups 6 | . . . 6 Power . | . . . . Propulsion 2 | . . . 2 Utility . | . . . . Weapon 4 | . . . 4 Tool/Special . | . . . . Average Slot Usage (%) 92 | . 100 93 75 Engine 11 | . 14 11 8 Leg 22 | . 28 22 16 Device 14 | . 14 18 8 Storage 13 | . 14 11 16 Processor 5 | . . 9 8 Energy Gun 9 | . 12 7 7 Ballistic Gun 13 | . 15 14 9 Peak Build Rating 22 | 9 14 22 22 Average Rating 15 | 4 11 18 16 On Entrance 10 | . 9 14 19 Avg Prop Armor Cover (%) . | . . . . Naked Turns 65 | . . . 65 Heaviest Build 27 | 14 17 27 27 Greatest Support 26 | 20 26 26 26 Greatest Overweight (x) 1 | . . 1 1 Average Overweight (x) . | . . . . Largest Inventory Capacity 10 | 8 8 10 10 Average Capacity 8 | 7 8 8 8 Most Carried 9 | 2 8 9 8 Average Carried 6 | 1 5 7 7 Final Capacity 10 | 8 8 10 5 Final Carried 9 | 2 8 9 4 Class Distribution -------------------- 80% | Mutant 19% | Scavenger-Mutant Dominant Class ---------------- Mutant | -10/Materials Mutant | -9/Materials Mutant | -9/Mines Resources | -11 -10 -9 -9 ----------- Run | Yrd Mat Mat Min Matter Collected 915 | 204 156 501 54 Remotely . | . . . . Salvage Created 1084 | 22 486 565 11 Parts 65 | 5 31 29 . Haulers Intercepted 2 | . 1 1 . Recyclers Shooed 1 | . 1 . . Parts Field Recycled . | . . . . Retrieved Matter . | . . . . Parts Self-Destructed . | . . . . Prevented . | . . . . Parts Restored . | . . . . Kills | -11 -10 -9 -9 ------- Run | Yrd Mat Mat Min Combat Hostiles Destroyed 25 | . 10 14 1 Guns 25 | . 10 14 1 Classes Destroyed 9 | 1 4 3 1 Tunneler 2 | 2 . . . Hauler 2 | . 1 1 . Recycler 1 | . 1 . . Operator 1 | . . 1 . Watcher 3 | . . 3 . Swarmer 10 | . 3 7 . Grunt 12 | . 7 5 . Sentry 2 | . . 2 . Assembled 1 | . . . 1 Best Kill Streak 4 | 2 3 4 1 Combat Bots Only 3 | . 3 3 1 Max Kills in Single Turn 2 | 1 1 2 1 Gunslinging 1 | . . 1 . Exploded . | . . . . Melee . | . . . . Uniques/NPCs Destroyed . | . . . . Combat | -11 -10 -9 -9 -------- Run | Yrd Mat Mat Min Hostile Shots Fired 180 | . 52 84 44 Missed 59 | . 15 31 13 Hits 121 | . 37 53 31 Melee 1 | . . . 1 Projectile 120 | . 37 53 30 AOE 14 | . . . 14 Critical Strikes 8 | . 1 3 4 Damage Taken 1771 | . 396 566 809 Core 512 | . 97 61 354 Absorbed by Shields . | . . . . Core Remaining (%) 80 | 100 61 . . Volleys Fired 97 | 4 35 53 5 Largest 2 | 2 2 2 2 Hottest 90 | 90 90 88 79 Shots Fired 191 | 8 71 103 9 Gun 191 | 8 71 103 9 Cannon . | . . . . Launcher . | . . . . Special . | . . . . Kinetic 96 | . 21 67 8 Thermal 95 | 8 50 36 1 Explosive . | . . . . Electromagnetic . | . . . . Robot Hit Streak 9 | 3 9 9 1 Robot Miss Streak 8 | 3 8 6 6 Penetration Max . | . . . . Secondary Targets 2 | . . 2 . Max Gunslinging Chain 1 | . . 1 . Shots Hit Robots 113 | 4 40 66 3 Core Hits 49 | 2 21 23 3 Critical Kills 1 | . . 1 . Critical Parts Destroyed . | . . . . Critical Strikes 5 | . 1 4 . Burn 4 | . 1 3 . Destroy 1 | . . 1 . Melee Attacks . | . . . . Impact . | . . . . Slashing . | . . . . Piercing . | . . . . Sneak Attacks . | . . . . Combat Hostiles . | . . . . Follow-up Attacks . | . . . . Damage Inflicted 1800 | 73 551 1113 63 Guns 1800 | 73 551 1113 63 Cannons . | . . . . Explosions . | . . . . Melee . | . . . . Ramming . | . . . . Kinetic 953 | . 213 677 63 Thermal 847 | 73 338 436 . Explosive . | . . . . Electromagnetic . | . . . . Impact . | . . . . Slashing . | . . . . Piercing . | . . . . Highest Corruption 8 | . 1 8 8 Average Corruption 5 | . 1 5 8 Corruption Purged . | . . . . Corruption Blocked . | . . . . Effects 35 | . 2 20 13 Message Errors 6 | . . 4 2 Matter Fused 7 | . . 6 1 Heat Flow Errors 5 | . . 3 2 Energy Discharges 6 | . 1 1 4 Parts Fused 1 | . . 1 . Data Loss (minor) 4 | . . 2 2 Data Loss (major) 2 | . . . 2 Misfires 1 | . 1 . . Alerts 2 | . . 2 . Weapon Failures 1 | . . 1 . Overload Shots . | . . . . Overflow Damage . | . . . . Projectiles . | . . . . Explosions . | . . . . Melee . | . . . . Knockbacks . | . . . . Impact . | . . . . Kinetic . | . . . . Secondary . | . . . . Self-Inflicted Damage . | . . . . Shots . | . . . . Rammed . | . . . . Targets Rammed . | . . . . Kicked . | . . . . Crushed . | . . . . Highest Temperature 229 | 120 221 172 229 Average Temperature 76 | 62 76 67 109 Received Heat Transfer 451 | . 144 267 40 Effects 1 | . . . 1 Energy Bleed 1 | . . . 1 Siege Activations . | . . . . Martial Activations . | . . . . Shielding Activations . | . . . . Robots Disrupted . | . . . . Combat Hostiles . | . . . . Robots Corrupted . | . . . . Combat Hostiles . | . . . . Parts Fried . | . . . . Impact Corruptions . | . . . . Robots Melted . | . . . . Combat Hostiles . | . . . . Parts Melted 8 | 1 3 4 . Heat Transferred 2349 | 198 967 1184 . Parts Sabotaged . | . . . . Parts Stolen . | . . . . Parts Stripped . | . . . . Power Chain Reactions . | . . . . Alert | -11 -10 -9 -9 ------- Run | Yrd Mat Mat Min Maximum Alert Level . | . . . . Low Security (%) 100 | 100 100 100 100 Level 1 . | . . . . Level 2 . | . . . . Level 3 . | . . . . Level 4 . | . . . . Level 5 . | . . . . High Security . | . . . . Max Security . | . . . . Peak Influence 160 | 10 160 147 35 Initial 20 | . . 20 12 Average 53 | 1 76 58 4 Influence Increases 832 | 10 337 440 45 Destroy 0b10 Robot/C 480 | . 200 280 . Destroy 0b10 Robot/NC 45 | 10 10 25 . Destroy Leader 110 | . 42 68 . Successful Hack 16 | . 10 6 . Disable Machine 30 | . . 30 . Destroy Structure 1 | . . 1 . Partial Spotted 15 | . . . 15 Lose Combat Pursuer 135 | . 75 30 30 Influence Decreases 827 | 10 288 457 72 Entered New Map 49 | . . 29 20 Time Decay 759 | 10 288 419 42 Lost Part 19 | . . 9 10 Squads Dispatched 2 | . 1 1 . Investigation 2 | . 1 1 . Extermination . | . . . . Reinforcement . | . . . . Assault . | . . . . Garrison . | . . . . Intercept . | . . . . Searches Triggered . | . . . . Construction Impeded . | . . . . Haulers Reinforced . | . . . . Active Scanning Responses . | . . . . Cargo Convoy Interrupts . | . . . . Stealth | -11 -10 -9 -9 --------- Run | Yrd Mat Mat Min Distress Signals 4 | . 2 2 . Communications Jammed . | . . . . Distress Signals . | . . . . Times Spotted 58 | . 19 22 17 Peak Tracking Total 12 | . 7 4 12 Tactical Retreats 6 | . 3 1 2 Traps | -11 -10 -9 -9 ------- Run | Yrd Mat Mat Min Traps Triggered 3 | . 1 2 . Indirectly . | . . . . Trap Hack Attempts . | . . . . Triggered . | . . . . Disarmed . | . . . . Reprogrammed . | . . . . Reused . | . . . . Traps Extracted . | . . . . Installed . | . . . . Triggered . | . . . . Machines | -11 -10 -9 -9 ---------- Run | Yrd Mat Mat Min Machines Disabled 2 | . . 2 . Max in Single Turn 1 | . . 1 . Machines Repaired . | . . . . Machines Dismantled . | . . . . Machines Sabotaged . | . . . . Overloaded Fab Kills . | . . . . Hacking | -11 -10 -9 -9 --------- Run | Yrd Mat Mat Min Machines Accessed 6 | . 4 2 . Terminals 6 | . 4 2 . Fabricators . | . . . . Repair Stations . | . . . . Recycling Units . | . . . . Scanalyzers . | . . . . Garrison Access . | . . . . Total Hacks 19 | . 14 5 . Successful 10 | . 6 4 . Failed 9 | . 8 1 . Catastrophic 1 | . 1 . . Database Lockouts . | . . . . Manual 12 | . 8 4 . Terminals 19 | . 14 5 . Fabricators . | . . . . Repair Stations . | . . . . Recycling Units . | . . . . Scanalyzers . | . . . . Garrison Access . | . . . . Terminal Hacks 5 | . 3 2 . Robot Analysis 2 | . . 2 . Level Access Points 1 | . 1 . . Patrol Status 1 | . 1 . . Recall Investigation 1 | . 1 . . Fabricator Hacks . | . . . . Repair Station Hacks . | . . . . Recycling Unit Hacks . | . . . . Scanalyzer . | . . . . Garrison Access Hacks . | . . . . Unauthorized Hacks 5 | . 3 2 . Terminals 5 | . 3 2 . Botnet 3 | . 2 1 . Operators 2 | . 1 1 . Fabricators . | . . . . Repair Stations . | . . . . Recycling Units . | . . . . Scanalyzers . | . . . . Garrison Access . | . . . . Data Cores Recovered 1 | . . 1 . Used 1 | . . 1 . Hacking Detections 5 | . 3 2 . Full Trace Events 2 | . 1 1 . Feedback Events . | . . . . Feedback Blocked . | . . . . Robot Schematics Acquired . | . . . . Robots Built . | . . . . Authchips . | . . . . Time . | . . . . Total Robot Build Rating . | . . . . Part Schematics Acquired . | . . . . Parts Built . | . . . . Authchips . | . . . . Time . | . . . . Total Part Build Rating . | . . . . Part Studies Acquired . | . . . . Parts Repaired . | . . . . Time . | . . . . Parts Recycled . | . . . . Recycled Matter . | . . . . Retrieved Matter . | . . . . Retrieved Components . | . . . . Parts Scanalyzed . | . . . . Part Schematics Acquired . | . . . . Parts Damaged . | . . . . Bothacking | -11 -10 -9 -9 ------------ Run | Yrd Mat Mat Min Used RIF Installer . | . . . . Robots Hacked . | . . . . Non-combat . | . . . . Combat . | . . . . Robot Hacks Applied . | . . . . Relay Couplers Released . | . . . . Fabnet Peak Effective % . | . . . . Robots Rewired . | . . . . Allies Hacked . | . . . . Hacks Repelled . | . . . . Allies | -11 -10 -9 -9 -------- Run | Yrd Mat Mat Min Total Allies . | . . . . Largest Group . | . . . . Highest-Rated Group . | . . . . Highest-Rated Ally . | . . . . Total Orders . | . . . . Ally Attacks . | . . . . Total Damage . | . . . . Kills . | . . . . Allies Corrupted . | . . . . Allies Melted . | . . . . Intel | -11 -10 -9 -9 ------- Run | Yrd Mat Mat Min Active Infowar (turns) 2023 | 7 711 1029 276 Optics 1152 | . . 876 276 Terrain 2019 | 7 711 1029 272 Robot Analysis Total 2 | . . 2 . Derelict Logs Recovered . | . . . . Drone Launches . | . . . . Drone Recoveries . | . . . . Exploration | -11 -10 -9 -9 ------------- Run | Yrd Mat Mat Min Turns Passed 2197 | 85 711 1029 372 Spaces Moved 1297 | 60 402 538 297 Core 171 | 16 . . 155 Treads . | . . . . Legs 1126 | 44 402 538 142 Wheels . | . . . . Hover . | . . . . Flight . | . . . . Fastest Speed 50 | 50 120 120 50 Average Speed 124 | 101 120 133 118 Slowest Speed 190 | 120 120 190 190 Overloaded Moves . | . . . . Propulsion Burnouts . | . . . . Robots Hopped . | . . . . Potential Cave-ins . | . . . . Cave-ins Triggered . | . . . . Exploration Rate (%) 41 | 4 49 39 74 Regions Visited 3 Branch Regions 1 Pre-discovered Areas . | . . . . Known Exits Taken 1 | . 1 . . Unknown Exits Taken 2 | 1 . 1 . Scrap Searched 2 | . . . 2 Spaces Dug . | . . . . Terrain Destroyed . | . . . . Melee . | . . . . Projectile . | . . . . AOE . | . . . . Terrain Rammed . | . . . . Walls Destroyed . | . . . . Machines Disabled . | . . . . Actions | -11 -10 -9 -9 --------- Run | Yrd Mat Mat Min Total 1694 | 72 564 752 306 Wait 251 | . 112 139 . Move 1294 | 59 401 537 297 Hop . | . . . . Pick Up 15 | 2 8 5 . Fast Attach 9 | 7 . 1 1 Attach 4 | . . 2 2 Detach . | . . . . Swap 13 | . 4 8 1 Drop 11 | . 4 7 . Fire 97 | 4 35 53 5 Melee . | . . . . Ram . | . . . . Kick . | . . . . Crush . | . . . . Escape Stasis . | . . . . Rewire . | . . . . Trap . | . . . . Miscellaneous . | . . . . Route ------- -11/Scrapyard -10/Materials (discovered 3 exits: *Mat x3) -9/Materials -9/Mines History --------- Turn | Location | Event 11 | -11/Scrapyard | Discovered new exit (range 16) 86 | -11/Scrapyard | Entered Materials 309 | -10/Materials | Build established: Mutant 758 | -10/Materials | Discovered new exit (range 12) 774 | -10/Materials | Identified exit to Materials 797 | -10/Materials | Entered another Materials area 797 | -9/Materials | Evolved 2 slots: Utility x2 1417 | -9/Materials | Build established: Scavenger-Mutant 1658 | -9/Materials | Discovered new exit (range 13) 1826 | -9/Materials | Entered Mines 1847 | -9/Mines | Build established: Mutant 2058 | -9/Mines | Assembled infested the area 2063 | -9/Mines | Assisted by a Guerilla fighting off Assembled 2099 | -9/Mines | Core integrity fell below 50% 2102 | -9/Mines | Released all parts (4) 2132 | -9/Mines | Lost 5 parts (1n2u2w) 2177 | -9/Mines | Core integrity fell below 20% 2198 | -9/Mines | Destroyed by as-36826 with Assembled Heavy Rifle Last Messages --------------- 02102_ Released Visual Processing Unit. 02102_ U-05 Engineer lays Concrete. 02103_ The unstable cave ceiling collapses. 02103_ K-01 Serf collects debris. 02103_ U-05 Engineer lays Concrete. 02104_ The unstable cave ceiling collapses. 02120_ System corrupted: Energy discharge (-21). 02130_ T-07 Excavator is excavating. 02151_ System corrupted: Substantial component data lost. 02166_ Searching scrap... 02166_ Found Shotgun. 02166_ Found Terrain Scan Processor. 02166_ Found Flail. 02166_ Found Tractor Beam. 02166_ Found 52 Matter. 02167_ Acquired Shotgun. 02170_ System corrupted: Heat flow error (+208). 02176_ as-01373 destroyed. 02191_ Critical hit (Destroy). 02191_ Autogun destroyed. Map ----- +----------------------------------------------------+ | ?# # # ##??#?##????????????????????????# | | ?# #### ###????????????????????????????# | | ## #?# #?????#???????????????????????# | | #?# # # #????????????????????????????## | | ####?## ####??????????????????????????# | | ?#???# % #???#? ????????????????????# # | | #???## ### #?? #??????????????????????# # | | ##??# ### ### ####???????????????????# # | | ##?# #?????????#?????##??# # | | ###%### # ########### #?????????# ## ?# # | | ##%#### # ##?????????????????????#% #%# | | #######??????????????????# !%* | | ##?#?#?????????????????# ##= | | ###??????????#????? ??# ###" #?# | | #?????????????#????????????#######??# | | ## #??????#???????????????????????????## | | ##?# ##??#??????????????????????????????## | | #??? #?????????????????????????????###### | | ##?? #???????????????????????????## | | #???? #?#???#????????????????????# | | ???? #?????????????????????###### # | | ???? #????????????????????# | # | | """ ???? ##???????????#????????# !%= # ## | | # """ ????###???????????#####?????# #####?# ### | | # """ ????????????????## ###???# #?????#/ #?## | | # ? ???????????????# @ ##??# #?????# %#???# | | ##?????????????????????## a #??# #?????#!!#???? | | ????????????????????????## #??# #?????#% #???? | | ?????????????????????????## ##?# #?????# #???? | | ??????????????????????????# aa### ###???# #???? | | ??????????????????????????## a ##??# #???? | | ???????????????????????????# aa #### #???? | | ???????????????????????????# a #???? | | ???????????????????????????## ## ########???? | | ????????????????????????????###########??????????? | | ?????????????????????????????????????????????????? | | ?????????????????????????????????????????????????? | | | | | | | | | | | | | | | | | | | | | | | | | | | +----------------------------------------------------+ Best States ------------- Heat Dissipation 42 Energy Generation 14 Energy Capacity 275 Matter Stores 433 Matter Capacity 450 Sight Range 18 Terrain Scan Range 16 Terrain Scan Density 10 Evasion (%) 55 Item Schematics ----------------- None Robot Schematics ------------------ None Fabricated ------------ Nothing Repaired ---------- Nothing Studied --------- None Alien Tech Used ----------------- None Achievements -------------- None Challenges ------------ None Game ------ Seed EtherialSmartShockpuncher Manual? 0 Play Time 00:16:41 Cumulative 214.3 hours Start 2025.10.30 @ 12:26:18 End 2025.10.30 @ 12:42:24 Sessions 1 Manual Loads 0 Difficulty Rogue Special Mode None Game No. 260 Rogue 86 Adventurer 174 Explorer 0 Win Type - Total 1 Types 1/0/0/0/0/0/0/0/0/0 Lore% 55 Gallery% 58 Achievement% 39 Wizard Run 0 Options --------- Layout 0 ASCII 0 Keyboard 1 Movement Numpad Keybinds 0 Fullscreen 1 Font 18/Terminus Map View 76x50 Zoom Use 0% Tactical HUD 1 Map Filters NONE Filters NONE Steam 1 RUN: 951664c6-d936-414c-bc74-feb893c24e1b